Cogmind - Beta 16 @@@ ROGUE MODE // 2025.11.16 @ 13:18:00 Player: FrigidRock Result: Self-destructed Performance ------------- Evolutions (1) 500 Regions Visited (5) 1000 Robots Destroyed (18) 90 Value Destroyed (370) 370 Prototype IDs (1) 20 Alien Tech Used (0) 0 Bonus (-23) -23 TOTAL SCORE: 1957 Bonus ------- Friendly Fire -23 Cogmind --------- Core Integrity 72/400 Matter 211/300 Energy 100/100 System Corruption 0% Temperature Cool (0) Movement Core (100) Ox1 Location -9/Exiles Parts ------- > --- POWER (1) -------- (None) > --- PROPULSION (3) --- (None) > --- UTILITY (2) ------ Small Storage Unit > --- WEAPON (3) ------- (None) > --- INVENTORY (8) ---- High-capacity Storage Unit Huge Storage Unit Structural Scanner Datajack Peak State ------------ > --- POWER ------------ Ion Engine > --- PROPULSION ------- Aluminum Leg Aluminum Leg > --- UTILITY ---------- Small Storage Unit Structural Scanner > --- WEAPON ----------- Improved Medium Laser Particle Cannon EMP Blaster > --- INVENTORY -------- Light Ion Engine Light Ion Engine High-capacity Storage Unit Huge Storage Unit Light Armor Plating Light Armor Plating Rocket Launcher Datajack [Rating: 12] Favorites ----------- Power Ion Engine Engine Ion Engine Propulsion Aluminum Leg Leg Aluminum Leg Utility Small Storage Unit Device Structural Scanner Storage Small Storage Unit Protection Light Armor Plating Weapon EMP Blaster Energy Gun Medium Laser Energy Cannon Particle Cannon Ballistic Gun Light Assault Rifle Launcher EMP Blaster Special Weapon Mining Laser Build | -11 -10 -10 -9 -9 -9 ------- Run | Yrd Mat Min Mat Min Exi Slots Evolved 2 | . . . 2 . . Power . | . . . . . . Propulsion 1 | . . . 1 . . Utility . | . . . . . . Weapon 1 | . . . 1 . . Parts Attached 19 | 7 3 1 5 . 3 Power 3 | 1 1 . 1 . . Engine 3 | 1 1 . 1 . . Core . | . . . . . . Reactor . | . . . . . . Propulsion 3 | 2 . 1 . . . Treads . | . . . . . . Leg 3 | 2 . 1 . . . Wheel . | . . . . . . Hover . | . . . . . . Flight . | . . . . . . Utility 4 | 1 1 . . . 2 Device 1 | . 1 . . . . Storage 1 | 1 . . . . . Processor . | . . . . . . Hackware . | . . . . . . Protection 2 | . . . . . 2 Artifact . | . . . . . . Weapon 9 | 3 1 . 4 . 1 Energy Gun 4 | 2 . . 2 . . Energy Cannon 1 | . . . 1 . . Ballistic Gun 1 | 1 . . . . . Ballistic Cannon . | . . . . . . Launcher 2 | . . . 1 . 1 Special Weapon 1 | . 1 . . . . Impact Weapon . | . . . . . . Slashing Weapon . | . . . . . . Piercing Weapon . | . . . . . . Special Melee Weapon . | . . . . . . Unidentified Prototypes 1 | . . . 1 . . Parts Lost 11 | . . . 1 . 10 Power 2 | . . . . . 2 Propulsion 2 | . . . . . 2 Utility 2 | . . . . . 2 Weapon 5 | . . . 1 . 4 Highest Loss Streak 9 | . . . 1 . 9 To Critical Strikes 2 | . . . 1 . 1 Average Backups 5 | . 4 6 7 7 6 Power 1 | . 1 2 1 1 . Propulsion . | . . . . . . Utility 3 | . 2 4 4 4 3 Weapon . | . . . . 1 . Tool/Special . | . . . . . . Unused Backups 2 | . . . . . 2 Power . | . . . . . . Propulsion . | . . . . . . Utility 1 | . . . . . 1 Weapon . | . . . . . . Tool/Special 1 | . . . . . 1 Average Slot Usage (%) 88 | . 93 100 87 88 75 Engine 11 | . 13 14 11 11 10 Leg 23 | . 28 28 22 22 13 Device 11 | . 13 14 11 11 7 Storage 12 | . 14 14 11 11 11 Energy Gun 12 | . 16 14 10 11 9 Energy Cannon 6 | . . . 10 11 10 Launcher 6 | . . . 10 11 10 Special Weapon 3 | . 6 14 . . . Peak Build Rating 12 | 6 7 7 12 12 12 Average Rating 9 | 4 6 7 10 12 10 On Entrance 7 | . 6 7 7 12 12 Avg Prop Armor Cover (%) 9 | . 9 . . . . Naked Turns . | . . . . . . Heaviest Build 22 | 12 15 14 22 20 22 Greatest Support 20 | 20 20 20 20 20 20 Greatest Overweight (x) 3 | . 2 1 1 . 3 Average Overweight (x) . | . . . . . . Largest Inventory Capacity 8 | 8 8 8 8 8 8 Average Capacity 7 | 7 8 8 8 8 8 Most Carried 8 | 1 6 7 8 7 7 Average Carried 5 | . 4 6 7 7 6 Final Capacity 8 | 8 8 8 8 8 8 Final Carried 7 | 1 6 7 7 7 4 Class Distribution -------------------- 53% | Skirmisher 43% | Mutant Dominant Class ---------------- Mutant | -10/Materials Mutant | -10/Mines Skirmisher | -9/Materials Skirmisher | -9/Mines Skirmisher | -9/Exiles Resources | -11 -10 -10 -9 -9 -9 ----------- Run | Yrd Mat Min Mat Min Exi Matter Collected 405 | 270 50 20 65 . . Remotely . | . . . . . . Salvage Created 567 | 80 80 42 359 . 6 Parts 31 | 1 1 2 27 . . Haulers Intercepted 1 | . . . 1 . . Recyclers Shooed . | . . . . . . Parts Field Recycled . | . . . . . . Retrieved Matter . | . . . . . . Parts Self-Destructed . | . . . . . . Prevented . | . . . . . . Parts Restored . | . . . . . . Kills | -11 -10 -10 -9 -9 -9 ------- Run | Yrd Mat Min Mat Min Exi Combat Hostiles Destroyed 18 | . 3 2 9 . 4 Guns 4 | . 2 . 2 . . Cannons 7 | . 1 2 4 . . AOE 7 | . . . 3 . 4 Classes Destroyed 8 | 1 1 . 5 . 1 Worker 1 | . . . 1 . . Builder 1 | . . . 1 . . Hauler 1 | . . . 1 . . Recycler 1 | 1 . . . . . Swarmer 7 | . . . 7 . . Grunt 5 | . 3 2 . . . Sentry 2 | . . . 2 . . Assembled 4 | . . . . . 4 Best Kill Streak 6 | 1 2 2 6 . 4 Combat Bots Only 4 | . 2 2 3 . 4 Max Kills in Single Turn 3 | 1 1 1 3 . 3 Gunslinging . | . . . . . . Exploded 3 | . . . 1 . 3 Melee . | . . . . . . Uniques/NPCs Destroyed . | . . . . . . Combat | -11 -10 -10 -9 -9 -9 -------- Run | Yrd Mat Min Mat Min Exi Hostile Shots Fired 148 | . 25 9 23 . 91 Missed 45 | . 5 4 7 . 29 Hits 103 | . 20 5 16 . 62 Melee 1 | . . . . . 1 Projectile 102 | . 20 5 16 . 61 Critical Strikes 20 | . . 1 2 . 17 Part Disruptions 2 | . . . . . 2 Damage Taken 1581 | . 256 85 165 . 1075 Core 455 | . 94 33 15 . 313 Absorbed by Shields . | . . . . . . Core Remaining (%) 74 | 100 . 49 . . . Volleys Fired 69 | 5 28 4 14 . 18 Largest 2 | 2 2 2 2 . 1 Hottest 150 | 90 150 150 113 . 33 Shots Fired 90 | 10 31 8 23 . 18 Gun 51 | 10 28 4 9 . . Cannon 9 | . . . 9 . . Launcher 23 | . . . 5 . 18 Special 7 | . 3 4 . . . Kinetic . | . . . . . . Thermal 53 | 5 31 8 9 . . Explosive 3 | . . . . . 3 Electromagnetic 34 | 5 . . 14 . 15 Robot Hit Streak 10 | 5 10 5 4 . 2 Robot Miss Streak 5 | 1 2 1 5 . 3 Penetration Max . | . . . . . . Secondary Targets . | . . . . . . Shots Hit Robots 49 | 9 21 7 9 . 3 Core Hits 38 | 2 6 5 13 . 12 Critical Kills . | . . . . . . Critical Parts Destroyed . | . . . . . . Critical Strikes 2 | . 1 1 . . . Burn 2 | . 1 1 . . . Melee Attacks . | . . . . . . Impact . | . . . . . . Slashing . | . . . . . . Piercing . | . . . . . . Sneak Attacks . | . . . . . . Combat Hostiles . | . . . . . . Follow-up Attacks . | . . . . . . Damage Inflicted 1352 | 112 282 123 446 . 389 Guns 466 | 112 234 51 69 . . Cannons 101 | . . . 101 . . Explosions 665 | . . . 276 . 389 Melee . | . . . . . . Ramming . | . . . . . . Kinetic . | . . . . . . Thermal 568 | 62 282 123 101 . . Explosive 346 | . . . . . 346 Electromagnetic 438 | 50 . . 345 . 43 Impact . | . . . . . . Slashing . | . . . . . . Piercing . | . . . . . . Highest Corruption . | . . . . . . Average Corruption . | . . . . . . Corruption Purged . | . . . . . . Corruption Blocked . | . . . . . . Overload Shots . | . . . . . . Overflow Damage 47 | . . . . . 47 Projectiles . | . . . . . . Explosions 47 | . . . . . 47 Melee . | . . . . . . Knockbacks . | . . . . . . Impact . | . . . . . . Kinetic . | . . . . . . Secondary . | . . . . . . Self-Inflicted Damage 79 | . . . 3 . 76 Shots 5 | . . . 1 . 4 Rammed . | . . . . . . Targets Rammed . | . . . . . . Kicked . | . . . . . . Crushed . | . . . . . . Highest Temperature 316 | 150 316 224 252 . 8 Average Temperature 130 | 81 160 117 105 . 8 Received Heat Transfer 369 | . 150 63 36 . 120 Effects 3 | . 2 . 1 . . Shutdowns 1 | . 1 . . . . Energy Bleed 1 | . . . 1 . . Short Circuit 1 | . 1 . . . . Siege Activations . | . . . . . . Martial Activations . | . . . . . . Shielding Activations . | . . . . . . Robots Disrupted . | . . . . . . Combat Hostiles . | . . . . . . Robots Corrupted . | . . . . . . Combat Hostiles . | . . . . . . Parts Fried . | . . . . . . Impact Corruptions . | . . . . . . Robots Melted . | . . . . . . Combat Hostiles . | . . . . . . Parts Melted 5 | . 5 . . . . Heat Transferred 1619 | 185 877 372 185 . . Parts Sabotaged . | . . . . . . Parts Stolen . | . . . . . . Parts Stripped . | . . . . . . Power Chain Reactions 6 | . . . 2 . 4 Alert | -11 -10 -10 -9 -9 -9 ------- Run | Yrd Mat Min Mat Min Exi Maximum Alert Level . | . . . . . . Low Security (%) 100 | 100 100 100 100 100 . Level 1 . | . . . . . . Level 2 . | . . . . . . Level 3 . | . . . . . . Level 4 . | . . . . . . Level 5 . | . . . . . . High Security . | . . . . . . Max Security . | . . . . . . Peak Influence 179 | 5 40 52 179 61 . Initial 61 | . 3 2 4 61 . Average 18 | . 7 28 41 11 . Influence Increases 404 | 5 110 50 239 . . Destroy 0b10 Robot/C 280 | . 60 40 180 . . Destroy 0b10 Robot/NC 20 | 5 . . 15 . . Destroy Leader 72 | . 20 10 42 . . Successful Hack 14 | . 14 . . . . Destroy Structure 3 | . 1 . 2 . . Lose Combat Pursuer 15 | . 15 . . . . Influence Decreases 404 | . 108 45 92 159 . Entered New Map 113 | . 2 5 8 98 . Time Decay 281 | . 106 40 74 61 . Lost Part 10 | . . . 10 . . Squads Dispatched 1 | . 1 . . . . Investigation . | . . . . . . Extermination . | . . . . . . Reinforcement 1 | . 1 . . . . Assault . | . . . . . . Garrison . | . . . . . . Intercept . | . . . . . . Searches Triggered . | . . . . . . Construction Impeded . | . . . . . . Haulers Reinforced . | . . . . . . Active Scanning Responses . | . . . . . . Cargo Convoy Interrupts . | . . . . . . Stealth | -11 -10 -10 -9 -9 -9 --------- Run | Yrd Mat Min Mat Min Exi Distress Signals 1 | . . . 1 . . Communications Jammed . | . . . . . . Distress Signals . | . . . . . . Times Spotted 27 | . 8 1 10 . 8 Peak Tracking Total 9 | . 5 1 5 . 9 Tactical Retreats 1 | . 1 . . . . Traps | -11 -10 -10 -9 -9 -9 ------- Run | Yrd Mat Min Mat Min Exi Traps Triggered 2 | . 2 . . . . Indirectly . | . . . . . . Trap Hack Attempts . | . . . . . . Triggered . | . . . . . . Disarmed . | . . . . . . Reprogrammed . | . . . . . . Reused . | . . . . . . Traps Extracted . | . . . . . . Installed . | . . . . . . Triggered . | . . . . . . Machines | -11 -10 -10 -9 -9 -9 ---------- Run | Yrd Mat Min Mat Min Exi Machines Disabled 5 | . . . . . 5 Max in Single Turn 2 | . . . . . 2 Machines Repaired . | . . . . . . Machines Dismantled . | . . . . . . Machines Sabotaged . | . . . . . . Overloaded Fab Kills . | . . . . . . Hacking | -11 -10 -10 -9 -9 -9 --------- Run | Yrd Mat Min Mat Min Exi Machines Accessed 3 | . 3 . . . . Terminals 3 | . 3 . . . . Fabricators . | . . . . . . Repair Stations . | . . . . . . Recycling Units . | . . . . . . Scanalyzers . | . . . . . . Garrison Access . | . . . . . . Total Hacks 6 | . 6 . . . . Successful 2 | . 2 . . . . Failed 4 | . 4 . . . . Catastrophic 2 | . 2 . . . . Database Lockouts . | . . . . . . Manual 6 | . 6 . . . . Terminals 6 | . 6 . . . . Fabricators . | . . . . . . Repair Stations . | . . . . . . Recycling Units . | . . . . . . Scanalyzers . | . . . . . . Garrison Access . | . . . . . . Terminal Hacks 2 | . 2 . . . . Part Schematic 2 | . 2 . . . . Fabricator Hacks . | . . . . . . Repair Station Hacks . | . . . . . . Recycling Unit Hacks . | . . . . . . Scanalyzer . | . . . . . . Garrison Access Hacks . | . . . . . . Unauthorized Hacks . | . . . . . . Terminals . | . . . . . . Fabricators . | . . . . . . Repair Stations . | . . . . . . Recycling Units . | . . . . . . Scanalyzers . | . . . . . . Garrison Access . | . . . . . . Data Cores Recovered . | . . . . . . Used . | . . . . . . Hacking Detections 3 | . 3 . . . . Full Trace Events . | . . . . . . Feedback Events . | . . . . . . Feedback Blocked . | . . . . . . Robot Schematics Acquired . | . . . . . . Robots Built . | . . . . . . Authchips . | . . . . . . Time . | . . . . . . Total Robot Build Rating . | . . . . . . Part Schematics Acquired 2 | . 2 . . . . Parts Built . | . . . . . . Authchips . | . . . . . . Time . | . . . . . . Total Part Build Rating . | . . . . . . Part Studies Acquired . | . . . . . . Parts Repaired . | . . . . . . Time . | . . . . . . Parts Recycled . | . . . . . . Recycled Matter . | . . . . . . Retrieved Matter . | . . . . . . Retrieved Components . | . . . . . . Parts Scanalyzed . | . . . . . . Part Schematics Acquired . | . . . . . . Parts Damaged . | . . . . . . Bothacking | -11 -10 -10 -9 -9 -9 ------------ Run | Yrd Mat Min Mat Min Exi Used RIF Installer . | . . . . . . Robots Hacked . | . . . . . . Non-combat . | . . . . . . Combat . | . . . . . . Robot Hacks Applied . | . . . . . . Relay Couplers Released . | . . . . . . Fabnet Peak Effective % . | . . . . . . Robots Rewired . | . . . . . . Allies Hacked . | . . . . . . Hacks Repelled . | . . . . . . Allies | -11 -10 -10 -9 -9 -9 -------- Run | Yrd Mat Min Mat Min Exi Total Allies . | . . . . . . Largest Group . | . . . . . . Highest-Rated Group . | . . . . . . Highest-Rated Ally . | . . . . . . Total Orders . | . . . . . . Ally Attacks . | . . . . . . Total Damage . | . . . . . . Kills . | . . . . . . Allies Corrupted . | . . . . . . Allies Melted . | . . . . . . Intel | -11 -10 -10 -9 -9 -9 ------- Run | Yrd Mat Min Mat Min Exi Active Infowar (turns) 1495 | . 495 88 364 378 170 Structural 1495 | . 495 88 364 378 170 Robot Analysis Total . | . . . . . . Derelict Logs Recovered 1 | . . . . 1 . Drone Launches . | . . . . . . Drone Recoveries . | . . . . . . Exploration | -11 -10 -10 -9 -9 -9 ------------- Run | Yrd Mat Min Mat Min Exi Turns Passed 1655 | 79 509 88 364 378 237 Spaces Moved 858 | 48 169 53 165 305 118 Core 17 | 7 1 . . . 9 Treads . | . . . . . . Legs 841 | 41 168 53 165 305 109 Wheels . | . . . . . . Hover . | . . . . . . Flight . | . . . . . . Fastest Speed 50 | 50 120 120 120 120 100 Average Speed 139 | 109 142 126 173 120 152 Slowest Speed 260 | 120 190 190 190 120 260 Overloaded Moves . | . . . . . . Propulsion Burnouts . | . . . . . . Robots Hopped . | . . . . . . Potential Cave-ins . | . . . . . . Cave-ins Triggered . | . . . . . . Exploration Rate (%) 28 | 4 35 18 26 77 12 Regions Visited 5 Branch Regions 3 Pre-discovered Areas 1 | . . . . 1 . Known Exits Taken . | . . . . . . Unknown Exits Taken 5 | 1 1 1 1 1 . Scrap Searched 1 | . . . . 1 . Spaces Dug . | . . . . . . Terrain Destroyed 34 | . 1 . 2 . 31 Melee . | . . . . . . Projectile 1 | . 1 . . . . AOE 33 | . . . 2 . 31 Terrain Rammed . | . . . . . . Walls Destroyed . | . . . . . . Machines Disabled . | . . . . . . Actions | -11 -10 -10 -9 -9 -9 --------- Run | Yrd Mat Min Mat Min Exi Total 1208 | 61 398 57 219 317 156 Wait 251 | . 192 . 30 13 16 Move 853 | 47 168 52 164 304 118 Hop . | . . . . . . Pick Up 7 | 1 4 . 2 . . Fast Attach 16 | 7 5 . 4 . . Attach 4 | . . . 1 . 3 Detach . | . . . . . . Swap 3 | . 1 1 . . 1 Drop 5 | 1 . . 4 . . Fire 69 | 5 28 4 14 . 18 Melee . | . . . . . . Ram . | . . . . . . Kick . | . . . . . . Crush . | . . . . . . Escape Stasis . | . . . . . . Rewire . | . . . . . . Trap . | . . . . . . Miscellaneous . | . . . . . . Route ------- -11/Scrapyard -10/Materials (discovered 2 exits: [*Min] / [Sub]) -10/Mines -9/Materials -9/Mines (discovered 3 exits: [*Mat x2] / [*Exi]) -9/Exiles (discovered 1 exit: [*Min]) History --------- Turn | Location | Event 4 | -11/Scrapyard | Discovered new exit (range 15) 80 | -11/Scrapyard | Entered Materials 156 | -10/Materials | Discovered new exit (range 13) 314 | -10/Materials | Build established: Mutant 563 | -10/Materials | Discovered new exit (range 8) 589 | -10/Materials | Entered Mines 600 | -10/Mines | Core integrity fell below 50% 611 | -10/Mines | Discovered new exit (range 16) 677 | -10/Mines | Entered Materials 677 | -9/Materials | Evolved 2 slots: Propulsion x1, Weapon x1 988 | -9/Materials | Build established: Skirmisher 991 | -9/Materials | Discovered new exit (range 16) 1041 | -9/Materials | Entered Mines 1042 | -9/Mines | Learned location of Storage (-8) 1047 | -9/Mines | Discovered new exit (range 10) 1106 | -9/Mines | Found a damaged Exp. Sensor Array with a note attached 1152 | -9/Mines | Received a Rocket Launcher from a helpful Derelict 1275 | -9/Mines | Discovered new exit (range 8) 1413 | -9/Mines | Deemed a non-threat by the Exiles lab entrance 1413 | -9/Mines | Discovered new exit (range 6) 1419 | -9/Mines | Entered Exiles 1447 | -9/Exiles | Met 8R-AWN 1539 | -9/Exiles | Discovered new exit (range 14) 1606 | -9/Exiles | Attacked by the Exiles 1638 | -9/Exiles | Core integrity fell below 50% 1656 | -9/Exiles | Core integrity fell below 20% 1656 | -9/Exiles | Self-destructed Last Messages --------------- 01641_ Penetrated by HV Slug. 01641_ HV Slug penetrates Wall. 01644_ Penetrated by HV Slug. 01646_ HV Slug penetrates Wall. 01646_ Penetrated by HV Slug. 01648_ HV Slug penetrates Wall. 01648_ Penetrated by HV Slug. 01648_ Critical hit (Destroy). 01648_ Lgt. Armor Plating destroyed. 01648_ HV Slug penetrates Wall. 01650_ Penetrated by HV Slug. 01650_ HV Slug penetrates Wall. 01653_ Penetrated by HV Slug. 01653_ Lgt. Ion Engine destroyed. 01653_ HV Slug penetrates Wall. 01653_ HV Slug penetrates Earth. 01655_ Penetrated by HV Slug. 01655_ HV Slug penetrates Earth. 01655_ Penetrated by HV Slug. 01655_ HV Slug penetrates Earth. Map ----- +----------------------------------------------------+ | ?????????????????????????????????????????????????? | | ?????????????????????????????????????????????????? | | ?????????????????????????????????????????????????? | | ?????????????????????????????????????????????????? | | ?????????????????????????????????????????????????? | | ?????????????????????????????????????????????????? | | ?????????????????????????????????????????????????? | | ?????????????????????????????????????????????????? | | ?????????????????????????????????????????????????? | | ?????????????????????????????????????????????????? | | ?????????????????????????????????????????????????? | | ?????????????????????????????????????????????????? | | ????????????????????????????????????????###??????? | | ???????????????????????????????????????### ##???? | | ???????????????????????????????????????## ##???? | | ???????????????????????????????????????# < ##???? | | ???????????????????????????????????????? ##???? | | ??????????????????????????????????????## ##???? | | ????????????????????????????????????#### ###???? | | ????????????????????????????????????### ###???? | | ????????????????#######?????????????## ##???? | | ???????????????########????????????### ##???? | | ???????????????### ##???????????#### ##???? | | ??????????????### #######??????### # ?????? | | ????????????##### #?####### ##?????? | | ????????????#### @ ######### ###?????? | | ???????????### a#"## ##??????? | | ???????????### g ###??????? | | ???????????## a ###??????? | | ????? # ###?????? | | ??? ## "####???? | | ???? ""## #; ######?? | | ???? #"""??############## #####? | | ????? #####??###############; ###? | | ????? ??#####??????????????##### ; ##? | | ????? ??????????????????????????#####"" ##? | | ?????????????????????????????????########" ### | | ??????????????????????????????????????### ### | | ???????????????????????????????????????##### ## | | ???????????????????????????????????????##### | | ??????????????????????????????????????????### | | ??????????????????????????????????????????##### | | ???????????????????????????????????????????#### | | ?????????????????????????????????????????????### | | ?????????????????????????????????????????????##### | | ??????????????????????????????????????????????#### | | ?????????????????????????????????????????????????? | | ?????????????????????????????????????????????????? | | ?????????????????????????????????????????????????? | | ?????????????????????????????????????????????????? | +----------------------------------------------------+ Best States ------------- Heat Dissipation 28 Energy Generation 10 Energy Capacity 250 Matter Stores 300 Matter Capacity 300 Sight Range 16 Terrain Scan Density 10 Armor Coverage 150 Evasion (%) 55 Item Schematics ----------------- Lrg. Storage Unit | -10/Materials | Hacked Hcp. Storage Unit | -10/Materials | Hacked Robot Schematics ------------------ None Fabricated ------------ Nothing Repaired ---------- Nothing Studied --------- None Alien Tech Used ----------------- None Achievements -------------- None Challenges ------------ None Game ------ Seed ConcussivePiercelightWarhead Manual? 0 Play Time 00:12:43 Cumulative 406.0 hours Start 2025.11.16 @ 13:08:06 End 2025.11.16 @ 13:18:00 Sessions 1 Manual Loads 0 Difficulty Rogue Special Mode None Game No. 176 Rogue 105 Adventurer 68 Explorer 3 Win Type - Total 34 Types 20/2/3/4/3/0/0/0/0/2 Lore% 79 Gallery% 77 Achievement% 56 Wizard Run 0 Options --------- Layout 0 ASCII 0 Keyboard 0 Movement Numpad Keybinds 0 Fullscreen 1 Font 24/Smallcaps Map View 76x50 Zoom Use 0% Tactical HUD 1 Map Filters NONE Filters NONE Steam 1 RUN: dcb4f913-ba90-449c-ae3e-35260b973c27